fUSD/lending_fUSD_20260112
["ID","MTS","AMOUNT","RATE_DAILY","PERIOD"]
[401440325,1768218642183,-249.33886025,0.00017973,2]
[401440326,1768218642193,-500.0,0.00017973,2]
[401440327,1768218642202,-502.71154611,0.00017973,2]
[401440328,1768218642212,-599.69310789,0.00017973,2]
[401440329,1768218642221,-500.0,0.00017973,2]
[401440330,1768218642231,-500.0,0.00017973,2]
[401440331,1768218642240,-500.0,0.00017973,2]
[401440332,1768218642249,-500.0,0.00017973,2]
[401440333,1768218642259,-500.0,0.00017973,2]
[401440334,1768218642268,-500.0,0.00017973,2]
[401440335,1768218642278,-500.0,0.00017973,2]
[401440336,1768218642288,-502.46613412,0.00017973,2]
[401440337,1768218642297,-500.0,0.00017973,2]
[401440338,1768218642307,-150.0,0.00017975,2]
[401440339,1768218642316,-152.92662848,0.00017982,2]
[401440340,1768218642326,-500.0,0.00017982,2]
[401440341,1768218642335,-501.32,0.00017987,2]
[401440342,1768218642345,-622.73202731,0.0001799,2]
[401440343,1768218642354,-622.73202731,0.0001799,2]
[401440344,1768218642363,-162.25638013,0.00017999,2]
[401440345,1768218642373,-1275.5795015,0.00017999,2]
[401440346,1768218642382,-300.0,0.00017999,2]
[401440347,1768218642392,-666.0,0.00017999,2]
[401440348,1768218642401,-300.0,0.00017999,2]
[401440349,1768218642410,-300.0,0.00017999,2]
[401440350,1768218642420,-666.0,0.00017999,2]
[401440351,1768218642429,-500.0,0.00017999,2]
[401440353,1768218642439,-500.0,0.00017999,2]
[401440354,1768218642448,-500.0,0.00017999,2]
[401440355,1768218642457,-500.0,0.00017999,2]
[401440356,1768218642466,-500.0,0.00017999,2]
[401440357,1768218642476,-500.0,0.00017999,2]
[401440358,1768218642485,-500.0,0.00017999,2]
[401440360,1768218642495,-500.0,0.00017999,2]
[401440362,1768218642503,-500.0,0.00017999,2]
[401440364,1768218642513,-500.0,0.00017999,2]
[401440366,1768218642521,-500.0,0.00017999,2]
[401440368,1768218642531,-369.87509882,0.00017999,2]
[401440369,1768218642540,-300.0,0.00017999,2]
[401440370,1768218642549,-263.65847092,0.00018,2]
[401440371,1768218642558,-156.71525667,0.00018,2]
[401440372,1768218642567,-154.38953807,0.00018,2]
[401440373,1768218642576,-209.38249725,0.00018,2]
[401440374,1768218642585,-155.07098724,0.00018,2]
[401440375,1768218642594,-151.45444701,0.00018,2]
[401440376,1768218642603,-152.37123583,0.00018,2]
[401440377,1768218642612,-152.34445976,0.00018,2]
[401440378,1768218642622,-248.59699216,0.00018,2]
[401440379,1768218642631,-154.70586823,0.00018,2]
[401440380,1768218642640,-1979878.00919366,0.00018,2]
[401440386,1768218643513,-754.07848955,0.00018,2]
[401440387,1768218643738,-166.79253757,0.000179,2]
[401440388,1768218643748,-13229.4183129,0.00018,2]
[401440389,1768218643759,-19138.23941,0.00018,2]
[401440390,1768218643770,-2447.56425142,0.00018,2]
[401440391,1768218643797,-3432.34298008,0.00018,2]
[401440392,1768218644002,-1.7e-07,0.00018,2]
[401440393,1768218644013,-7776163.10646792,0.00018,2]
[401440394,1768218644024,-626.36847836,0.00018,2]
[401440395,1768218644036,-1119.9698822,0.00018,2]
[401440396,1768218644059,-11832.38440721,0.00018,2]
[401440397,1768218644436,-565.21859961,0.000178,2]
[401440398,1768218644460,-1134.975,0.000178,2]
[401440407,1768218645582,-508.31709661,0.000178,2]
[401440409,1768218645594,-2250.23576355,0.000178,2]
[401440410,1768218645604,-9318.06598591,0.00018,2]
[401440413,1768218645637,-15630.39272714,0.00018,2]
[401440416,1768218645796,-3252.75000005,0.00018,2]
[401440417,1768218645850,-213.15897997,0.000179,2]
[401440418,1768218645860,-13973.20122265,0.00018,2]
[401440419,1768218645871,-35169.77845882,0.00018,2]
[401440420,1768218693896,-601.58032445,0.00012511,2]
[401440421,1768218697637,-500.0,0.00012511,2]
[401440422,1768218700427,-216.0729742,0.00012511,2]
[401440423,1768218705981,-233.79218184,0.00012511,2]
[401440424,1768218710124,-279.24937539,0.00012511,2]
[401440425,1768218713327,-168.97270751,0.00012511,2]
[401440426,1768218716623,-256.0,0.00012511,2]
[401440427,1768218718761,-193.10568257,0.00012511,2]
[401440428,1768218720806,-213.77511729,0.00012511,2]
[401440429,1768218722847,-278.10463043,0.0001251,2]
[401440430,1768218724829,-21.89536957,0.0001251,2]
[401440431,1768218724855,-263.74082381,0.00012511,2]
[401440432,1768218726247,-500.0,0.00012511,2]
[401440433,1768218729343,-232.09640326,0.00012511,2]
[401440434,1768218734243,-154.70347521,0.00012511,2]
[401440435,1768218736268,-224.95,0.00012511,2]
[401440436,1768218738382,-164.94464984,0.00012511,2]
[401440437,1768218740848,-283.9270258,0.00012511,2]
[401440438,1768218744375,-304.46185172,0.00012511,2]
[401440439,1768218748476,-155.559821,0.00012511,2]
[401440440,1768218749882,-319.52610379,0.00012511,2]
[401440441,1768218753070,-191.43443687,0.00012511,2]
[401440442,1768218758235,-385.99815781,0.00012511,2]
[401440443,1768218759827,-297.33914041,0.00012511,2]
[401440444,1768218764640,-265.0,0.00012511,2]
[401440445,1768218766893,-298.54134994,0.00012511,2]
[401440446,1768218769602,-183.37522052,0.00012511,2]
[401440447,1768218773157,-313.69994669,0.00012511,2]
[401440448,1768218774238,-255.60362038,0.00012511,2]
[401440449,1768218775759,-402.69494204,0.00012511,2]
[401440450,1768218780118,-220.7081094,0.00012511,2]
[401440451,1768218782136,-168.00441332,0.0001251,2]
[401440452,1768218785839,-131.99558668,0.0001251,2]
[401440453,1768218785869,-168.00441332,0.00012511,2]
[401440454,1768218787379,-386.7209937,0.00012511,2]
[401440455,1768218788904,-258.83768649,0.00012511,2]
[401440456,1768218791568,-301.0211071,0.00012511,2]
[401440457,1768218793642,-300.0,0.00012511,2]
[401440458,1768218797110,-183.26959751,0.00012511,2]
[401440459,1768218801853,-233.31822963,0.00012511,2]
[401440460,1768218804264,-160.16809625,0.00012511,2]
[401440461,1768218805875,-235.87234156,0.00012511,2]
[401440462,1768218807178,-257.17570933,0.00012511,2]
[401440463,1768218809354,-155.04733483,0.00012511,2]
[401440464,1768218812276,-335.98824633,0.00012511,2]
[401440465,1768218816956,-686.33339307,0.00012511,2]
[401440466,1768218818124,-269.40144431,0.00012511,2]
[401440467,1768218820028,-267.17649534,0.00012511,2]
[401440468,1768218821585,-197.03,0.00012511,2]
[401440469,1768218822946,-151.80254426,0.00012511,2]
[401440470,1768218826374,-248.98775697,0.00012511,2]
[401440471,1768218831302,-381.44436797,0.00012511,2]
[401440472,1768218832842,-526.3855839,0.00012511,2]
[401440473,1768218836796,-222.0,0.00012511,2]
[401440474,1768218838841,-214.65359386,0.00012511,2]
[401440475,1768218840351,-173.27926553,0.00012511,2]
[401440476,1768218842452,-246.5644123,0.0001251,2]
[401440477,1768218845546,-53.4355877,0.0001251,2]
[401440478,1768218845569,-153.52822975,0.0001251,2]
[401440479,1768218847584,-146.47177025,0.0001251,2]
[401440480,1768218847610,-300.0,0.0001251,2]
[401440481,1768218847636,-30.71109088,0.00012511,2]
[401440482,1768218849563,-286.05719876,0.00012511,2]
[401440483,1768218852931,-211.45476909,0.00012511,2]
[401440484,1768218854380,-221.1910972,0.00012511,2]
[401440485,1768218856438,-208.75968596,0.00012511,2]
[401440486,1768218860619,-166.79253757,0.0001251,2]
[401440487,1768218860648,-501.50275995,0.00012511,2]
[401440488,1768218863879,-300.0,0.00012511,2]
[401440489,1768218865898,-166.37816147,0.00012511,2]
[401440490,1768218868498,-250.0,0.0001251,2]
[401440491,1768218872260,-300.01319839,0.0001251,2]
[401440492,1768218876887,-293.03618238,0.0001251,2]
[401440493,1768218879522,-162.1637805,0.0001251,2]
[401440494,1768218882168,-173.41473106,0.0001251,2]
[401440495,1768218884404,-301.98869862,0.0001251,2]
[401440496,1768218885885,-332.09261751,0.0001251,2]
[401440497,1768218888052,-159.20714182,0.0001251,2]
[401440498,1768218892712,-42.02402656,0.0001251,2]
[401440499,1768218892733,-193.41448177,0.00012511,2]
[401440500,1768218894884,-166.37701664,0.00012511,2]
[401440501,1768218900687,-163.2149018,0.00012511,2]
[401440502,1768218902207,-300.0,0.0001251,2]
[401440503,1768218902228,-200.0,0.0001251,2]
[401440504,1768218903730,-225.27615223,0.0001251,2]
[401440505,1768218914287,-658.43801417,0.0001251,2]
[401440506,1768218919253,-116.2858336,0.0001251,2]
[401440507,1768218919275,-175.79613153,0.00012511,2]
[401440508,1768218925827,-163.2149018,0.0001251,2]
[401440509,1768218925850,-149.94219513,0.0001251,2]
[401440510,1768218964497,-186.5513693,0.00012509,2]
[401440511,1768218980181,-193.0,0.00012447,2]
[401440512,1768218980209,-107.0,0.00012509,2]
[401440513,1768219025076,-214.7707599,0.00012509,2]
[401440514,1768219038838,-85.2292401,0.00012509,2]
[401440515,1768219038861,-178.7707599,0.00012509,2]
[401440516,1768219040937,-275.73461415,0.00012509,2]
[401440517,1768219044544,-254.52455885,0.00012509,2]
[401440518,1768219047768,-349.44989669,0.00012509,2]
[401440519,1768219052396,-186.40952326,0.00012509,2]
[401440520,1768219055777,-182.5212226,0.00012509,2]
[401440521,1768219057403,-300.0,0.00012509,2]
[401440522,1768219061175,-183.70388876,0.00012509,2]
[401440523,1768219063274,-500.0,0.00012509,2]
[401440524,1768219065760,-306.68354983,0.00012509,2]
[401440525,1768219067874,-263.10583184,0.00012509,2]
[401440526,1768219069893,-432.38288912,0.00012509,2]
[401440527,1768219071987,-172.36715775,0.00012509,2]
[401440528,1768219074135,-309.3320007,0.00012509,2]
[401440529,1768219077010,-948.14402246,0.00012509,2]
[401440530,1768219078076,-282.63596466,0.00012509,2]
[401440531,1768219080210,-247.51841234,0.00012509,2]
[401440532,1768219085080,-179.84290307,0.00012508,2]
[401440533,1768219098967,-154.87775072,0.00012411,2]
[401440534,1768219101549,-161.39,0.00012411,2]
[401440536,1768219144832,-183.99062804,0.00012408,2]
[401440537,1768219144854,-74.05539422,0.00012411,2]
[401440538,1768219204357,-109.67685506,0.00012411,2]
[401440539,1768219204380,-58.92423821,0.00012411,2]
[401440540,1768219207547,-178.27799937,0.00012411,2]
[401440541,1768219210692,-73.72200063,0.00012411,2]
[401440542,1768219210714,-95.28488383,0.00012411,2]
[401440543,1768219244891,339.6165,0.00012409,2]
[401440544,1768219246760,-87.0306,0.00012409,2]
[401440545,1768219246785,-145.47279764,0.00012411,2]
[401440546,1768219246810,-67.49660236,0.000125,2]
[401440571,1768219308874,-154.719,0.00012261,2]
[401440572,1768219308898,-46.48166262,0.00012261,2]
[401440573,1768219820154,-204.46829994,0.00012161,2]
[401440574,1768219820178,-90.88487714,0.00012161,2]
[401440581,1768219831798,-159.11512286,0.00012161,2]
[401440582,1768219831807,-1091.29533738,0.00012261,2]
[401440583,1768219831816,-158.11278045,0.00012261,2]
[401440584,1768219831826,-154.87775072,0.00012304,2]
[401440585,1768219831835,-156.50350247,0.00012311,2]
[401440586,1768219831844,-300.0,0.00012403,2]
[401440587,1768219831853,-1076.4037556,0.00012403,2]
[401440588,1768219831864,-123.5962444,0.00012403,2]
[401440589,1768219831873,-303.95945056,0.00012404,2]
[401440590,1768219831882,-500.0,0.00012404,2]
[401440591,1768219831890,-14.2435898,0.00012404,2]
[401440592,1768219831901,-485.7564102,0.00012404,2]
[401440593,1768219831911,-645.04065515,0.00012404,2]
[401440594,1768219831920,-500.0,0.00012404,2]
[401440595,1768219831929,-500.0,0.00012404,2]
[401440596,1768219831938,-500.0,0.00012404,2]
[401440597,1768219831947,-500.0,0.00012404,2]
[401440598,1768219831956,-500.0,0.00012404,2]
[401440599,1768219831966,-458.2404981,0.00012404,2]
[401440600,1768219831975,-500.0,0.00012404,2]
[401440601,1768219831984,-500.0,0.00012404,2]
[401440602,1768219831993,-500.0,0.00012404,2]
[401440603,1768219832002,-500.0,0.00012404,2]
[401440604,1768219832011,-23726.72861312,0.00012405,2]
[401440605,1768219832019,-10781.9519116,0.00012409,2]
[401440606,1768219832035,-728.91649147,0.00012409,2]
[401440607,1768219832054,-553095.18273235,0.00012409,2]
[401440608,1768219832066,-100717.59011667,0.00012409,2]
[401440609,1768219832076,-58067.70901701,0.00012409,2]
[401440610,1768219832087,-78800.78084717,0.00012409,2]
[401440611,1768219832097,-2279.48107587,0.00012409,2]
[401440612,1768219832109,-741.54979015,0.00012409,2]
[401440613,1768219832119,-658.19883048,0.00012409,2]
[401440614,1768219832130,-300.0,0.00012409,2]
[401440615,1768219832165,-286.90712824,0.00012409,2]
[401440616,1768219837901,-433.8905762,0.00012409,2]
[401440617,1768219837913,-3336.60427056,0.00012409,2]
[401440618,1768219837925,-16785.43009764,0.00012409,2]
[401440619,1768219837956,-726.4,0.00012409,2]
[401440620,1768219838030,-172259.40711459,0.00012409,2]
[401440621,1768219838040,-3284.70592862,0.00012411,2]
[401440622,1768219838049,-202.23270184,0.00012504,2]
[401440623,1768219838060,-91140.63970219,0.00012509,2]
[401440624,1768219838071,-3975.06693476,0.00012511,2]
[401440625,1768219838081,-200.0,0.00012511,2]
[401440626,1768219838091,-7949.08,0.00012511,2]
[401440627,1768219838101,-299.99,0.00012511,2]
[401440628,1768219838110,-9999.99,0.00012511,2]
[401440629,1768219838120,-9999.99,0.00012511,2]
[401440630,1768219838130,-150.99,0.00012511,2]
[401440631,1768219838140,-150.99,0.00012511,2]
[401440632,1768219838149,-1918.39432216,0.000126,2]
[401440633,1768219838160,-200.0,0.00012636,2]
[401440634,1768219838170,-1500.0,0.000127,2]
[401440636,1768219838179,-33074.45,0.000127,2]
[401440638,1768219838189,-415.15468487,0.00013011,2]
[401440640,1768219838198,-3284.70592862,0.00013021,2]
[401440642,1768219838208,-1918.39432208,0.00013189,2]
[401440644,1768219838218,-166.66,0.00013375,2]
[401440646,1768219838227,-344.97893136,0.00013377,2]
[401440648,1768219838237,-300.0,0.00013487,2]
[401440650,1768219838247,-300.0,0.00013487,2]
[401440652,1768219838257,-169.00688446,0.00013487,2]
[401440654,1768219838267,-195.0,0.00013487,2]
[401440655,1768219838278,-420.0,0.00013611,2]
[401440656,1768219838288,-3284.70592862,0.00013631,2]
[401440657,1768219838298,-1680.0,0.00013644,2]
[401440658,1768219838308,-166.66,0.00013656,2]
[401440659,1768219838319,-500.0,0.00013698,2]
[401440660,1768219838331,-640.36441369,0.00013698,2]
[401440661,1768219838340,-156.50350245,0.00013708,2]
[401440662,1768219838350,-1918.39432208,0.00013778,2]
[401440663,1768219838359,-166.66,0.00013938,2]
[401440664,1768219838371,-54509.7082547,0.00014041,2]
[401440665,1768219838380,-88671.35978767,0.00014052,2]
[401440666,1768219838390,-125230.42440709,0.00014052,2]
[401440667,1768219838401,-162045.5265,0.00014052,2]
[401440668,1768219838410,-166.66,0.00014219,2]
[401440669,1768219838420,-3284.70592862,0.00014241,2]
[401440670,1768219838429,-342.06341135,0.00014267,2]
[401440671,1768219838439,-96513.9239951,0.00014281,2]
[401440672,1768219838449,-199601.4942917,0.00014314,2]
[401440673,1768219838459,-1918.39432208,0.00014367,2]
[401440674,1768219838469,-210.11,0.00014452,2]
[401440675,1768219838479,-166.66,0.00014501,2]
[401440676,1768219838488,-500.0,0.00014605,2]
[401440677,1768219838498,-3240.0,0.00014759,2]
[401440678,1768219838508,-166.66,0.00014783,2]
[401440679,1768219838518,-1042.8812425,0.00014811,2]
[401440680,1768219838527,-3284.70592862,0.00014851,2]
[401440681,1768219838537,-587.0,0.00014935,2]
[401440682,1768219838547,-1918.39432208,0.00014956,2]
[401440683,1768219838557,-2351.0,0.00015008,2]
[401440684,1768219838566,-156.50350245,0.00015106,2]
[401440685,1768219838576,-232.6982586,0.00015325,2]
[401440686,1768219838585,-3284.70592862,0.0001546,2]
[401440687,1768219838596,-1263.1,0.00015516,2]
[401440688,1768219838606,-1918.39432208,0.00015544,2]
[401440689,1768219838616,-500.0,0.00015616,2]
[401440690,1768219838626,-1000.0,0.00015918,2]
[401440691,1768219838635,-96513.9239951,0.00016054,2]
[401440692,1768219838645,-250.0,0.00016069,2]
[401440693,1768219838656,-3284.70592862,0.0001607,2]
[401440694,1768219838666,-342.06341134,0.00016084,2]
[401440695,1768219838677,-1918.39432208,0.00016133,2]
[401440696,1768219838687,-150.0,0.000162,2]
[401440697,1768219838696,-150.0,0.000162,2]
[401440698,1768219838705,-150.13669543,0.000162,2]
[401440699,1768219838715,-150.0,0.000162,2]
[401440700,1768219838725,-150.0,0.000162,2]
[401440701,1768219838735,-150.00000001,0.000162,2]
[401440702,1768219838745,-150.0,0.000162,2]
[401440703,1768219838754,-150.0,0.000162,2]
[401440704,1768219838764,-150.0,0.000162,2]
[401440705,1768219838773,-150.0,0.000162,2]
[401440706,1768219838783,-150.0,0.000162,2]
[401440707,1768219838792,-150.0,0.000162,2]
[401440708,1768219838801,-150.0,0.000162,2]
[401440709,1768219838812,-150.0,0.000162,2]
[401440710,1768219838821,-194.13832329,0.000162,2]
[401440711,1768219838831,-150.0,0.00016225,2]
[401440712,1768219838840,-150.0,0.00016249,2]
[401440713,1768219838850,-150.0,0.00016274,2]
[401440714,1768219838859,-150.0,0.00016299,2]
[401440715,1768219838868,-150.0,0.00016323,2]
[401440716,1768219838878,-150.0,0.00016348,2]
[401440717,1768219838888,-150.0,0.00016373,2]
[401440718,1768219838897,-823.0,0.00016389,2]
[401440719,1768219838907,-150.0,0.00016397,2]
[401440720,1768219838916,-150.0,0.000164,2]
[401440721,1768219838926,-150.0,0.000164,2]
[401440722,1768219838935,-150.0,0.00016422,2]
[401440723,1768219838944,-150.0,0.00016425,2]
[401440724,1768219838954,-500.0,0.00016438,2]
[401440725,1768219838963,-500.0,0.00016438,2]
[401440726,1768219838973,-500.0,0.00016438,2]
[401440727,1768219838983,-500.0,0.00016438,2]
[401440728,1768219838993,-500.0,0.00016438,2]
[401440729,1768219839003,-500.0,0.00016438,2]
[401440730,1768219839012,-151.0,0.00016438,2]
[401440731,1768219839022,-150.0,0.00016447,2]
[401440732,1768219839031,-150.0,0.00016471,2]
[401440733,1768219839040,-150.0,0.00016496,2]
[401440734,1768219839051,-4778.87766585,0.00016498,2]
[401440735,1768219839061,-150.0,0.000165,2]
[401440736,1768219839070,-150.0,0.000165,2]
[401440737,1768219839080,-150.0,0.000165,2]
[401440738,1768219839090,-156.50350245,0.00016503,2]
[401440739,1768219839100,-3292.0,0.00016509,2]
[401440740,1768219839110,-1000.0,0.00016515,2]
[401440741,1768219839119,-150.0,0.00016521,2]
[401440742,1768219839130,-150.0,0.00016545,2]
[401440743,1768219839139,-150.0,0.0001657,2]
[401440744,1768219839149,-150.0,0.00016595,2]
[401440745,1768219839158,-150.0,0.000166,2]
[401440746,1768219839168,-150.0,0.000166,2]
[401440747,1768219839178,-150.0,0.00016619,2]
[401440748,1768219839188,-150.0,0.00016644,2]
[401440749,1768219839197,-150.0,0.0001665,2]
[401440750,1768219839207,-150.0,0.0001665,2]
[401440751,1768219839216,-150.0,0.0001665,2]
[401440752,1768219839226,-150.0,0.00016668,2]
[401440753,1768219839235,-3284.70592862,0.0001668,2]
[401440754,1768219839244,-1879.18,0.00016681,2]
[401440755,1768219839254,-150.0,0.00016693,2]
[401440756,1768219839263,-159.73,0.00016712,2]
[401440757,1768219839272,-150.0,0.00016718,2]
[401440758,1768219839281,-1918.39432208,0.00016722,2]
[401440759,1768219839291,-150.0,0.00016742,2]
[401440760,1768219839300,-150.0,0.00016767,2]
[401440761,1768219839309,-150.0,0.00016792,2]
[401440762,1768219839319,-150.0,0.000168,2]
[401440763,1768219839331,-150.0,0.000168,2]
[401440764,1768219839341,-150.0,0.000168,2]
[401440765,1768219839350,-150.0,0.000168,2]
[401440766,1768219839359,-150.0,0.000168,2]
[401440767,1768219839369,-150.0,0.000168,2]
[401440768,1768219839379,-150.0,0.00016816,2]
[401440769,1768219839389,-150.0,0.00016841,2]
[401440770,1768219839401,-150.0,0.00016866,2]
[401440771,1768219839411,-150.0,0.00016875,2]
[401440772,1768219839420,-150.0,0.0001689,2]
[401440773,1768219839431,-150.0,0.00016915,2]
[401440774,1768219839441,-150.0,0.0001694,2]
[401440775,1768219839451,-157.92109806,0.00016962,2]
[401440776,1768219839460,-150.0,0.00016964,2]
[401440777,1768219839470,-150.0,0.00016989,2]
[401440778,1768219839480,-150.0,0.00017,2]
[401440779,1768219839489,-150.0,0.00017,2]
[401440780,1768219839498,-2000.0,0.00017,2]
[401440781,1768219839507,-1000.0,0.00017,2]
[401440782,1768219839516,-1000.0,0.00017,2]
[401440783,1768219839527,-150.0,0.00017014,2]
[401440784,1768219839537,-150.0,0.00017038,2]
[401440785,1768219839546,-150.0,0.00017063,2]
[401440786,1768219839556,-1091.0,0.00017068,2]
[401440787,1768219839566,-500.11872932,0.00017073,2]
[401440788,1768219839576,-500.0,0.00017073,2]
[401440789,1768219839585,-500.0,0.00017073,2]
[401440790,1768219839595,-500.0,0.00017073,2]
[401440791,1768219839604,-500.0,0.00017073,2]
[401440792,1768219839613,-164.2110081,0.00017073,2]
[401440793,1768219839623,-537.39654828,0.00017073,2]
[401440794,1768219839632,-500.0,0.00017073,2]
[401440795,1768219839642,-161.98929508,0.00017073,2]
[401440796,1768219839651,-169.86648744,0.00017073,2]
[401440797,1768219839661,-500.0,0.00017073,2]
[401440798,1768219839670,-167.63634062,0.00017073,2]
[401440799,1768219839681,-500.0,0.00017073,2]
[401440800,1768219839690,-500.0,0.00017073,2]
[401440801,1768219839700,-500.0,0.00017073,2]
[401440802,1768219839710,-173.30819609,0.00017073,2]
[401440803,1768219839720,-500.64635657,0.00017073,2]
[401440804,1768219839730,-500.0,0.00017073,2]
[401440805,1768219839739,-500.0,0.00017073,2]
[401440806,1768219839749,-500.0,0.00017073,2]
[401440807,1768219839758,-500.0,0.00017073,2]
[401440808,1768219839768,-500.0,0.00017073,2]
[401440809,1768219839777,-500.0,0.00017073,2]
[401440810,1768219839787,-500.0,0.00017073,2]
[401440811,1768219839797,-500.0,0.00017073,2]
[401440812,1768219839807,-500.0,0.00017073,2]
[401440813,1768219839817,-500.0,0.00017073,2]
[401440814,1768219839826,-500.0,0.00017073,2]
[401440815,1768219839835,-237.55266578,0.00017073,2]
[401440816,1768219839844,-500.0,0.00017073,2]
[401440817,1768219839853,-500.0,0.00017073,2]
[401440819,1768219839863,-500.0,0.00017073,2]
[401440821,1768219839872,-500.57959935,0.00017073,2]
[401440822,1768219839881,-500.0,0.00017073,2]
[401440823,1768219839891,-500.0,0.00017073,2]
[401440824,1768219839900,-150.0,0.00017088,2]
[401440825,1768219839909,-150.0,0.000171,2]
[401440826,1768219839919,-150.0,0.000171,2]
[401440827,1768219839928,-150.0,0.000171,2]
[401440828,1768219839937,-150.0,0.000171,2]
[401440829,1768219839946,-150.0,0.000171,2]
[401440830,1768219839956,-150.0,0.000171,2]
[401440831,1768219839965,-1000.0,0.00017112,2]
[401440832,1768219839974,-150.0,0.00017112,2]
[401440833,1768219839983,-150.0,0.00017137,2]
[401440834,1768219839993,-1488.48657997,0.00017138,2]
[401440835,1768219840002,-150.0,0.00017162,2]
[401440836,1768219840012,-150.0,0.00017186,2]
[401440837,1768219840021,-150.0,0.000172,2]
[401440838,1768219840030,-150.0,0.000172,2]
[401440839,1768219840040,-150.0,0.00017211,2]
[401440840,1768219840049,-150.0,0.00017236,2]
[401440841,1768219840059,-150.0,0.0001726,2]
[401440842,1768219840068,-150.0,0.00017285,2]
[401440843,1768219840077,-3284.70592862,0.0001729,2]
[401440844,1768219840086,-150.0,0.0001731,2]
[401440845,1768219840095,-1918.39432208,0.00017311,2]
[401440846,1768219840104,-150.0,0.00017325,2]
[401440847,1768219840114,-150.0,0.00017334,2]
[401440848,1768219840123,-150.0,0.00017359,2]
[401440849,1768219840132,-150.0,0.00017384,2]
[401440850,1768219840141,-150.0,0.000174,2]
[401440851,1768219840150,-150.0,0.000174,2]
[401440852,1768219840159,-150.0,0.000174,2]
[401440853,1768219840168,-150.0,0.000174,2]
[401440854,1768219840177,-150.0,0.000174,2]
[401440855,1768219840186,-150.0,0.000174,2]
[401440856,1768219840195,-150.0,0.00017408,2]
[401440857,1768219840204,-150.0,0.00017433,2]
[401440858,1768219840213,-1263.1,0.00017455,2]
[401440859,1768219840222,-150.0,0.00017458,2]
[401440860,1768219840232,-150.0,0.00017482,2]
[401440861,1768219840241,-500.0,0.00017499,2]
[401440862,1768219840251,-2000.0,0.000175,2]
[401440863,1768219840260,-210.11,0.00017505,2]
[401440864,1768219840270,-150.0,0.00017507,2]
[401440865,1768219840279,-150.0,0.00017532,2]
[401440866,1768219840289,-158.73335703,0.00017534,2]
[401440867,1768219840299,-12356.9939922,0.00017546,2]
[401440868,1768219840309,-150.0,0.0001755,2]
[401440869,1768219840318,-150.0,0.0001755,2]
[401440870,1768219840330,-150.0,0.0001755,2]
[401440871,1768219840339,-150.0,0.00017556,2]
[401440872,1768219840349,-150.0,0.00017581,2]
[401440873,1768219840358,-150.0,0.000176,2]
[401440874,1768219840369,-150.0,0.000176,2]
[401440875,1768219840378,-150.0,0.00017605,2]
[401440876,1768219840388,-987.57806594,0.00017621,2]
[401440877,1768219840397,-500.0,0.00017621,2]
[401440878,1768219840410,-166.96227274,0.00017621,2]
[401440879,1768219840419,-500.0,0.00017621,2]
[401440880,1768219840428,-1000.70457439,0.00017621,2]
[401440881,1768219840438,-500.0,0.00017621,2]
[401440882,1768219840448,-540.4577012,0.00017621,2]
[401440883,1768219840458,-1000.0,0.00017621,2]
[401440884,1768219840467,-500.51842778,0.00017621,2]
[401440885,1768219840476,-1000.0,0.00017621,2]
[401440886,1768219840486,-1010.77976475,0.00017621,2]
[401440887,1768219840496,-500.0,0.00017621,2]
[401440888,1768219840505,-500.0,0.00017621,2]
[401440889,1768219840515,-501.67211681,0.00017621,2]
[401440890,1768219840524,-1031.96318574,0.00017621,2]
[401440891,1768219840533,-1000.0,0.00017621,2]